{"text_format":"1","workbook":"xlsx","n_sheets":1,"sheets":["Packing List"],"not_rendered":{"charts":0,"images":17,"macros":1,"external_links":0,"defined_names":27,"comments":0,"pivot_tables":0},"unopened":[],"bounds":{"document_bytes":16777216,"sheet_cells":100000,"rows_first":2000,"rows_last":500,"rows_between":2000,"halvings":0,"cell_chars":16384,"cell_head_chars":4096},"cells_cut":0,"cells_raw":0,"read":"whole","date_system":"1900"}

{"sheet":"Packing List","index":0,"n_rows":89,"n_cols":21,"rows_kept":89,"cut":false,"hidden":false,"merged":[[36,4,36,5],[54,0,76,0],[7,14,7,18],[13,18,13,19],[39,11,48,11],[39,8,48,8],[43,9,44,10],[39,0,48,0],[35,1,35,2],[9,0,15,0],[16,0,21,0],[22,0,25,0],[26,0,29,0],[30,0,36,0],[32,1,32,2],[33,1,33,2],[34,1,34,2],[31,1,31,2],[25,1,25,2],[7,7,7,11],[4,4,4,12],[6,4,6,5],[6,7,6,8],[6,10,6,11],[7,4,7,5]]}
[]
[]
[]
[]
[null,null,null,"Destination:","Sicily - Catania, Syracuse, Ortigia, Noto, Ragusa, Agrigento, Marsala, Perlermo, Monreale, Cefalú, Mt. Etna, Taorimina, & Cyclops Rivera"]
[null,"Purchase"]
[null,"Backback",null,"Dates:","8/27/25 - 9/6/25",null,"Days:",10,null,"Nights:",9]
[null,"Suitcase",null,"Travel Type:","Pleasure",null,"Weather:",{"$f":"\"Averages of \"&ROUND(S15,0)&\"° to \"&ROUND(T15,0)&\"° - Low and high \"&S17&\"° to \"&T17&\"° - \"&S29","v":"Averages of 74° to 87° - Low and high 69° to 99° - Sunny"},null,null,null,null,null,null,"Averages of 76° to 86° - Low and high 66° to 90° - Clear"]
[null,"Wear to travel"]
["Attire","√","QTY ","Item","√","QTY   ","Item","√   ","QTY ","Item","√","QTY  ","Item"]
[null,null,11,"Underpants wear one",null,2,"Collared shirts wear one",null,2,"Caps - wear one"]
[null,null,10,"Colored Undershirts",null,10,"Short sleeve shirts",null,1,"Sneaker shoes - Wear"]
[null,null,11,"Socks wear one",null,3,"Long pants  wear one",null,1,"Hiking Shoes"]
[null,null,1,"Room clothes",null,3,"Pair of shorts",null,null,null,null,null,null,null,null,null,null,null,"Average Temps"]
[null,null,2,"Handkerchief  wear one",null,1,"Light Rain Jacket",null,null,null,null,null,null,null,null,null,null,null,{"$f":"AVERAGE(S18:S27)","v":74.2},{"$f":"AVERAGE(T18:T27)","v":87.4},{"$f":"AVERAGE(S18:T27)","v":80.8}]
[null,null,2,"Belt wear one",null,1,"Bathing suites",null,null,null,null,null,null,null,null,null,null,null,"Min Temp","Max temp"]
["Toiletries",null,null,null,null,null,null,null,null,null,null,null,null,null,null,null,null,null,{"$f":"MIN(S18:S27)","v":69},{"$f":"MAX(T18:T27)","v":99}]
[null,null,1,"Brush",null,1,"Deodorant",null,1,"Toothbrush","√",1,"Razor and shave cream",null,null,null,null,"2025-08-28",{"$f":"_xlfn.NUMBERVALUE(D80)","v":79},{"$f":"_xlfn.NUMBERVALUE(E80)","v":96}]
[null,null,1,"Styling Product",null,1,"Skin lotion",null,1,"Toothpaste","√",1,"Retainers/ case ",null,null,null,null,"2025-08-29",{"$f":"_xlfn.NUMBERVALUE(D81)","v":76},88]
[null,null,1,"Powder",null,2,"Suntan lotion",null,1,"Floss","√","few","Q Tips",null,null,null,null,"2025-08-30",{"$f":"_xlfn.NUMBERVALUE(D82)","v":72},85]
[null,null,null,null,null,2,"Bar soap + container",null,"Row","Inbetweeners","√",4,"Travel tissue packages",null,null,null,null,"2025-08-31",{"$f":"_xlfn.NUMBERVALUE(D83)","v":75},82]
[null,null,null,null,null,null,null,null,null,null,null,null,null,null,null,null,null,"2025-09-01",{"$f":"_xlfn.NUMBERVALUE(D84)","v":69},84]
["Docs",null,null,null,null,null,null,null,null,null,null,null,null,null,null,null,null,"2025-09-02",{"$f":"_xlfn.NUMBERVALUE(D85)","v":77},99]
[null,null,300,"Cash",null,32,"Euros",null,null,null,null,null,null,null,null,null,null,"2025-09-03",{"$f":"_xlfn.NUMBERVALUE(D86)","v":73},85]
[null,null,"All","Credit Card",null,"Both","Passports",null,null,null,null,null,null,null,null,null,null,"2025-09-04",{"$f":"_xlfn.NUMBERVALUE(D87)","v":75},85]
[null,null,null,"Drivers License",null,null,null,null,null,null,null,null,null,null,null,null,null,"2025-09-05",{"$f":"_xlfn.NUMBERVALUE(D88)","v":73},86]
[null,null,null,null,null,null,null,null,null,null,null,null,null,null,null,null,null,"2025-09-06",{"$f":"_xlfn.NUMBERVALUE(D89)","v":73},84]
[null,null,"few","Band-aids",null,9,"Night Medications"]
[null,null,"few","Pain relievers",null,10,"Day Vitamins",null,null,null,null,null,null,null,null,null,null,null,"Sunny",{"$f":"COUNTIF($D$40:$D$49,\"Sunny\")","v":7}]
[null,null,"1 pk.","Anti-Bacterial wipes",null,2,"Chap stick",null,null,null,null,null,null,null,null,null,null,null,"Clear",{"$f":"COUNTIF($D$40:$D$49,\"Clear\")","v":1}]
["Misc.",null,null,null,null,null,null,null,null,null,null,null,null,null,null,null,null,null,"Cloudy",{"$f":"COUNTIF($D$40:$D$49,\"Mostly Sunny\")","v":1}]
[null,null,null,"Cell phone & cable",null,2,"3 in 1 electric plug",null,"few","Quart size Zip lock bags",null,null,null,null,null,null,null,null,"Partly Cloudy",{"$f":"COUNTIF($D$40:$D$49,\"Partly Cloudy\")","v":1}]
[null,null,null,"Pen & paper",null,4,"Euro electric adaptors",null,1,"Water bottle empty",null,null,null,null,null,null,null,null,"Mostly Clear",{"$f":"COUNTIF($D$40:$D$49,\"Mostly Clear\")","v":0}]
[null,null,null,"Fire Tablet & cable",null,1,"Pocket Camera & cable",null,2,"Vape",null,null,null,null,null,null,null,null,"Scattered Clouds",{"$f":"COUNTIF($D$40:$D$49,\"Scattered Clouds\")","v":0}]
[null,null,null,"Apple Watch & cable",null,1,"Portable battery power / charger",null,2,"Dry cleaner plastic wrap",null,null,null,null,null,null,null,null,"Broken clouds",{"$f":"COUNTIF($D$40:$D$49,\"Broken clouds\")","v":0}]
[null,null,null,"Nightstand charger cradel",null,1,"Mini tripod",null,"few","Sweet & Lo",null,null,null,null,null,null,null,null,"Thundershowers†",{"$f":"COUNTIF($D$40:$D$49,\"Thundershowers†\")","v":0}]
[null,null,1,"Headphones",null,null,"MacBook Air and charger",null,null,null,null,null,null,null,null,null,null,null,"Rain",{"$f":"COUNTIF($D$40:$D$49,\"Rain\")","v":0}]
[null,null,null,null,null,null,null,null,null,null,null,null,null,null,null,null,null,null,"Mostly Sunny",{"$f":"COUNTIF($D$40:$D$49,\"Cloudy\")","v":0}]
[null,"Date","City","Cloud Cover","High/Low","Humidity","Sunrise","Sunset",null,"Flights","Date",null,"Reservations",null,null,null,null,null,"Overcast",{"$f":"COUNTIF($D$40:$D$49,\"Overcast\")","v":0}]
["Weather","2025-08-28","Cat","Sunny","72 / 87",66,"~6:20am","~7:45pm","Flights","AZ 609 JFK FCO 1605 - 0640 +1","2025-08-27","Hotels","Il Principe Hotel - Catania"]
[null,"2025-08-29","Cat","Sunny","72 / 87",66,"~6:21am","~7:44pm",null,"54D, 55D","Seats",null,"Il Principe Hotel - Catania"]
[null,"2025-08-30","Cat","Partly Cloudy","70 / 88",67,"~6:22am","~7:43pm",null,"AZ 1709 FCO CTA 0815 - 0930","2025-08-28",null,"Il Principe Hotel - Catania"]
[null,"2025-08-31","Syr & Rag","Sunny","64 / 86",63,"~6:23am","~7:42pm",null,"18A, 18C","Seats",null,"Mediterraneo Palace 4 - Ragusa"]
[null,"2025-09-01","Agr","Sunny","68 / 84",82,"~6:24am","~7:41pm",null,"ITA Airlines (AZ) Booking Referene # 3D3TYJ",null,null,"Baia di Ulisse Wellness & SPA - Agrigento"]
[null,"2025-09-02","Pal","Sunny","73 / 86",61,"~6:25am","~7:39pm",null,null,null,null,"Mercure Palermo Centro 4* - Palermo\t"]
[null,"2025-09-03","Pal","Mostly Sunny","73 / 85",60,"~6:26am","~7:38pm",null,"AZ 1744 CTAFCO 0805 - 0930","2025-09-06",null,"Mercure Palermo Centro 4* - Palermo\t"]
[null,"2025-09-04","Cat","Sunny","68 / 87",60,"~6:27am","~7:37pm",null,"18A, 18C","Seats",null,"Il Principe Hotel - Catania"]
[null,"2025-09-05","Cat","Sunny","67 / 86",61,"~6:28am","~7:36pm",null,"AZ 608 FCO JFK 1030 - 1355","2025-09-06",null,"Il Principe Hotel - Catania"]
[null,"2025-09-06","EWR","Clear","67 / 86",60,"~6:29am","~7:35pm",null,"50D, 51D","Seats",null,"Il Principe Hotel - Catania"]
[null,null,"Cat = Catania, Syr = Syracuse, Rag = Ragusa, Agr - Agrigento, Pal = Palermo"]
[]
[]
[null,"Trip To Do's"]
[null,"Get Done before trip starts"]
["Trip To Do's","Due","Status","Task","Area","Complete"]
[null,"2025-02-28",{"$f":"IF(F56=\"√\",\"Done\",\"Open\")","v":"Open"},"Purchase Suitcase","Travel"]
[null,"2025-05-25",{"$f":"IF(F57=\"√\",\"Done\",\"Open\")","v":"Open"},"Final Exoticca payment due","Travel"]
[null,"2025-08-06",{"$f":"IF(F58=\"√\",\"Done\",\"Open\")","v":"Open"},"Pick up tee shirts at Costco","Travel"]
[null,"2025-08-24",{"$f":"IF(D59=\"\",\"\",IF(F59=\"√\",\"Done\",\"Open\"))","v":"Open"},"Replace AirTag batteries","Personal"]
[null,"2025-08-25",{"$f":"IF(F60=\"√\",\"Done\",\"Open\")","v":"Open"},"Haircut","Personal"]
[null,"2025-08-25",{"$f":"IF(D61=\"\",\"\",IF(F61=\"√\",\"Done\",\"Open\"))","v":"Open"},"Do a dark load of laundry","Personal"]
[null,"2025-08-25","Open","Cut nails","Travel"]
[null,"2025-08-25","Open","Stop Mail","Personal"]
[null,"2025-08-25","Open","Gather Items","Travel"]
[null,"2025-08-25","Open","Move cars back in driveway","Personal"]
[null,"2025-08-26","Open","Pack","Personal"]
[null,"2025-08-26","Open","Charge toothbrush, powerbank, camera, headphones, Fire","Travel"]
[null,"2025-08-26","Open","Arrange Lyft","Travel"]
[null,"2025-08-26",{"$f":"IF(D69=\"\",\"\",IF(F69=\"√\",\"Done\",\"Open\"))","v":"Open"},"Flight check in","Travel"]
[null,"2025-08-26","Open","Vacum an dust","Personal"]
[null,"2025-08-27","Open","Make plane food","Travel"]
[null,null,{"$f":"IF(D72=\"\",\"\",IF(F72=\"√\",\"Done\",\"Open\"))","v":""},null,"Personal"]
[null,null,{"$f":"IF(D73=\"\",\"\",IF(F73=\"√\",\"Done\",\"Open\"))","v":""}]
[null,null,{"$f":"IF(D74=\"\",\"\",IF(F74=\"√\",\"Done\",\"Open\"))","v":""}]
[null,null,{"$f":"IF(D75=\"\",\"\",IF(F75=\"√\",\"Done\",\"Open\"))","v":""}]
[null,null,""]
[null,null,""]
[]
["Date","Location","Cloud Cover","Low (°F)","High (°F)","Humidity (%)","Sunrise","Sunset"]
["2025-08-28","Catania","Mostly Sunny",79,96,42,"6:27am","7:33pm",null,null,null,null,{"$f":"D80&\" / \"&E80","v":"79 / 96"}]
["2025-08-29","Catania","Partly Cloudy",76,88,61,"6:28am","7:32pm",null,null,null,null,{"$f":"D81&\" / \"&E81","v":"76 / 88"}]
["2025-08-30","Catania","Partly Cloudy",72,85,66,"6:29am","7:31pm",null,null,null,null,"72 / 85"]
["2025-08-31","Syracuse/Ragusa","Clear",75,82,"~68","6:29am","7:29pm",null,null,null,null,"75 / 82"]
["2025-09-01","Agrigento","Mostly Sunny",69,84,67,"6:29am","7:27pm",null,null,null,null,"69 / 84"]
["2025-09-02","Palermo","Mostly Sunny",77,99,58,"6:30am","7:26pm",null,null,null,null,"77 / 99"]
["2025-09-03","Palermo","Clear",73,85,65,"6:31am","7:24pm",null,null,null,null,"73 / 85"]
["2025-09-04","Catania","Mostly Sunny",75,85,61,"6:32am","7:23pm",null,null,null,null,"75 / 85"]
["2025-09-05","Catania","sunny",73,86,59,"6:33am","7:21pm",null,null,null,null,"73 / 86"]
["2025-09-06","Catania","Partly Cloudy",73,84,62,"6:33am","7:20pm",null,null,null,null,"73 / 84"]